fUSD/lending_fUSD_20250720
["ID","MTS","AMOUNT","RATE_DAILY","PERIOD"]
[373476660,1753019462393,-480.0,0.00019397,2]
[373476662,1753019462402,-480.0,0.00019397,2]
[373476664,1753019462411,-480.0,0.00019397,2]
[373476666,1753019462420,-480.0,0.00019397,2]
[373476668,1753019462431,-480.0,0.00019397,2]
[373476670,1753019462443,-480.0,0.00019397,2]
[373476672,1753019462452,-480.0,0.00019397,2]
[373476674,1753019462461,-480.0,0.00019397,2]
[373476676,1753019462470,-480.0,0.00019397,2]
[373476677,1753019462479,-342.72483127,0.00019397,2]
[373476678,1753019462489,-151.0,0.00019397,2]
[373476679,1753019462498,-480.0,0.00019397,2]
[373476680,1753019462507,-223.762811,0.00019397,2]
[373476681,1753019462518,-480.0,0.00019397,2]
[373476682,1753019462527,-480.0,0.00019397,2]
[373476683,1753019462536,-480.0,0.00019397,2]
[373476684,1753019462545,-480.0,0.00019397,2]
[373476686,1753019462555,-340.0,0.00019397,2]
[373476688,1753019462564,-480.0,0.00019397,2]
[373476690,1753019462573,-480.0,0.00019397,2]
[373476692,1753019462583,-480.0,0.00019397,2]
[373476694,1753019462592,-480.0,0.00019397,2]
[373476696,1753019462601,-282.94948242,0.00019397,2]
[373476698,1753019462611,-420.41966995,0.00019397,2]
[373476700,1753019462620,-151.0,0.00019397,2]
[373476702,1753019462629,-480.0,0.00019397,2]
[373476704,1753019462638,-480.0,0.00019397,2]
[373476706,1753019462648,-480.0,0.00019397,2]
[373476708,1753019462657,-480.0,0.00019397,2]
[373476710,1753019462666,-480.0,0.00019397,2]
[373476712,1753019462675,-480.0,0.00019397,2]
[373476714,1753019462684,-480.0,0.00019397,2]
[373476715,1753019462693,-480.0,0.00019397,2]
[373476717,1753019462702,-480.0,0.00019397,2]
[373476720,1753019462712,-480.0,0.00019397,2]
[373476721,1753019462721,-480.0,0.00019397,2]
[373476723,1753019462730,-480.0,0.00019397,2]
[373476725,1753019462739,-340.0,0.00019397,2]
[373476727,1753019462748,-480.0,0.00019397,2]
[373476729,1753019462757,-480.0,0.00019397,2]
[373476731,1753019462766,-480.0,0.00019397,2]
[373476733,1753019462775,-151.0,0.00019397,2]
[373476735,1753019462784,-340.0,0.00019397,2]
[373476737,1753019462794,-480.0,0.00019397,2]
[373476739,1753019462803,-480.0,0.00019397,2]
[373476741,1753019462812,-480.0,0.00019397,2]
[373476743,1753019462821,-480.0,0.00019397,2]
[373476745,1753019462830,-480.0,0.00019397,2]
[373476747,1753019462839,-480.0,0.00019397,2]
[373476749,1753019462849,-340.0,0.00019397,2]
[373476751,1753019462858,-480.0,0.00019397,2]
[373476753,1753019462867,-480.0,0.00019397,2]
[373476755,1753019462876,-480.0,0.00019397,2]
[373476757,1753019462886,-480.0,0.00019397,2]
[373476760,1753019462896,-480.0,0.00019397,2]
[373476761,1753019462905,-480.0,0.00019397,2]
[373476763,1753019462914,-207.367706,0.00019397,2]
[373476765,1753019462924,-480.0,0.00019397,2]
[373476767,1753019462934,-207.367706,0.00019397,2]
[373476769,1753019462944,-480.0,0.00019397,2]
[373476771,1753019462954,-480.0,0.00019397,2]
[373476773,1753019462963,-480.0,0.00019397,2]
[373476775,1753019462972,-340.0,0.00019397,2]
[373476777,1753019462981,-480.0,0.00019397,2]
[373476779,1753019462991,-480.0,0.00019397,2]
[373476781,1753019463000,-480.0,0.00019397,2]
[373476783,1753019463009,-151.0,0.00019397,2]
[373476785,1753019463018,-480.0,0.00019397,2]
[373476787,1753019463028,-440.0,0.00019397,2]
[373476789,1753019463037,-480.0,0.00019397,2]
[373476791,1753019463047,-1000.0,0.00019397,2]
[373476793,1753019463056,-480.0,0.00019397,2]
[373476795,1753019463065,-991.02,0.00019397,2]
[373476797,1753019463075,-151.0,0.00019397,2]
[373476799,1753019463084,-480.0,0.00019397,2]
[373476801,1753019463094,-253.48,0.00019397,2]
[373476803,1753019463103,-667.66,0.00019397,2]
[373476805,1753019463114,-480.0,0.00019397,2]
[373476807,1753019463124,-151.0,0.00019397,2]
[373476809,1753019463135,-480.0,0.00019397,2]
[373476811,1753019463146,-151.0,0.00019397,2]
[373476813,1753019463156,-480.0,0.00019397,2]
[373476815,1753019463166,-480.0,0.00019397,2]
[373476817,1753019463176,-331.56,0.00019397,2]
[373476819,1753019463186,-151.0,0.00019397,2]
[373476821,1753019463197,-506.94,0.00019397,2]
[373476824,1753019463211,-573.77,0.00019397,2]
[373476826,1753019463221,-759.54,0.00019397,2]
[373476828,1753019463231,-480.0,0.00019397,2]
[373476830,1753019463241,-480.0,0.00019397,2]
[373476831,1753019463250,-480.0,0.00019397,2]
[373476833,1753019463260,-480.0,0.00019397,2]
[373476836,1753019463270,-151.0,0.00019397,2]
[373476837,1753019463279,-480.0,0.00019397,2]
[373476839,1753019463288,-360.0,0.00019397,2]
[373476841,1753019463298,-480.0,0.00019397,2]
[373476843,1753019463308,-5060.37,0.00019397,2]
[373476846,1753019463318,-817.3,0.00019397,2]
[373476848,1753019463329,-1132.31,0.00019397,2]
[373476849,1753019463339,-480.0,0.00019397,2]
[373476852,1753019463350,-480.0,0.00019397,2]
[373476853,1753019463359,-480.0,0.00019397,2]
[373476855,1753019463369,-151.0,0.00019397,2]
[373476857,1753019463379,-480.0,0.00019397,2]
[373476859,1753019463390,-480.0,0.00019397,2]
[373476862,1753019463400,-480.0,0.00019397,2]
[373476864,1753019463410,-561.39,0.00019397,2]
[373476866,1753019463419,-480.0,0.00019397,2]
[373476868,1753019463429,-1056.44,0.00019397,2]
[373476870,1753019463443,-480.0,0.00019397,2]
[373476872,1753019463454,-1722.64,0.00019397,2]
[373476874,1753019463464,-561.76,0.00019397,2]
[373476876,1753019463474,-480.0,0.00019397,2]
[373476878,1753019463485,-480.0,0.00019397,2]
[373476880,1753019463495,-1184.53,0.00019397,2]
[373476882,1753019463505,-480.0,0.00019397,2]
[373476884,1753019463515,-480.0,0.00019397,2]
[373476886,1753019463526,-480.0,0.00019397,2]
[373476888,1753019463536,-708.25,0.00019397,2]
[373476890,1753019463546,-640.15,0.00019397,2]
[373476892,1753019463556,-480.0,0.00019397,2]
[373476894,1753019463566,-654.33,0.00019397,2]
[373476896,1753019463575,-525.6,0.00019397,2]
[373476898,1753019463585,-486.88,0.00019397,2]
[373476900,1753019463595,-2315.41,0.00019397,2]
[373476902,1753019463605,-514.36,0.00019397,2]
[373476904,1753019463615,-480.0,0.00019397,2]
[373476906,1753019463624,-480.0,0.00019397,2]
[373476908,1753019463634,-480.0,0.00019397,2]
[373476910,1753019463646,-397.19374049,0.00019397,2]
[373476912,1753019463656,-529.02,0.00019397,2]
[373476914,1753019463666,-1036.06,0.00019397,2]
[373476916,1753019463676,-151.0,0.00019397,2]
[373476918,1753019463686,-313.48,0.00019397,2]
[373476920,1753019463696,-1025.76,0.00019397,2]
[373476922,1753019463707,-480.0,0.00019397,2]
[373476924,1753019463716,-573.81,0.00019397,2]
[373476926,1753019463726,-802.35,0.00019397,2]
[373476928,1753019463736,-480.0,0.00019397,2]
[373476930,1753019463745,-151.0,0.00019397,2]
[373476932,1753019463755,-480.0,0.00019397,2]
[373476934,1753019463764,-480.0,0.00019397,2]
[373476936,1753019463774,-480.0,0.00019397,2]
[373476938,1753019463783,-480.0,0.00019397,2]
[373476940,1753019463793,-619.12,0.00019397,2]
[373476942,1753019463803,-392.34,0.00019397,2]
[373476944,1753019463812,-480.0,0.00019397,2]
[373476946,1753019463822,-480.0,0.00019397,2]
[373476948,1753019463831,-480.0,0.00019397,2]
[373476950,1753019463841,-480.0,0.00019397,2]
[373476952,1753019463850,-933.84,0.00019397,2]
[373476954,1753019463859,-1899.42,0.00019397,2]
[373476956,1753019463869,-480.0,0.00019397,2]
[373476958,1753019463878,-480.0,0.00019397,2]
[373476960,1753019463889,-1365.37,0.00019397,2]
[373476962,1753019463898,-480.0,0.00019397,2]
[373476964,1753019463908,-480.0,0.00019397,2]
[373476966,1753019463917,-480.0,0.00019397,2]
[373476968,1753019463926,-643.56,0.00019397,2]
[373476969,1753019463937,-480.0,0.00019397,2]
[373476970,1753019463946,-480.0,0.00019397,2]
[373476971,1753019463955,-480.0,0.00019397,2]
[373476972,1753019463964,-480.0,0.00019397,2]
[373476973,1753019463974,-480.0,0.00019397,2]
[373476974,1753019463984,-491.14,0.00019397,2]
[373476975,1753019463993,-513.7,0.00019397,2]
[373476977,1753019464003,-480.0,0.00019397,2]
[373476979,1753019464012,-480.0,0.00019397,2]
[373476981,1753019464021,-480.0,0.00019397,2]
[373476983,1753019464031,-742.91,0.00019397,2]
[373476985,1753019464041,-770.53,0.00019397,2]
[373476987,1753019464050,-480.0,0.00019397,2]
[373476989,1753019464059,-480.0,0.00019397,2]
[373476991,1753019464069,-480.0,0.00019397,2]
[373476993,1753019464079,-400.0,0.00019397,2]
[373476995,1753019464088,-480.0,0.00019397,2]
[373476997,1753019464097,-400.0,0.00019397,2]
[373476999,1753019464106,-480.0,0.00019397,2]
[373477001,1753019464116,-517.74,0.00019397,2]
[373477003,1753019464126,-6566.95,0.00019397,2]
[373477005,1753019464135,-480.0,0.00019397,2]
[373477007,1753019464146,-480.0,0.00019397,2]
[373477009,1753019464155,-703.59,0.00019397,2]
[373477011,1753019464165,-559.29,0.00019397,2]
[373477013,1753019464174,-480.0,0.00019397,2]
[373477015,1753019464183,-480.0,0.00019397,2]
[373477017,1753019464192,-480.0,0.00019397,2]
[373477019,1753019464202,-480.0,0.00019397,2]
[373477021,1753019464211,-480.0,0.00019397,2]
[373477023,1753019464221,-480.0,0.00019397,2]
[373477025,1753019464230,-480.0,0.00019397,2]
[373477027,1753019464239,-480.0,0.00019397,2]
[373477029,1753019464248,-480.0,0.00019397,2]
[373477031,1753019464258,-480.0,0.00019397,2]
[373477033,1753019464267,-480.0,0.00019397,2]
[373477035,1753019464277,-622.75,0.00019397,2]
[373477037,1753019464286,-480.0,0.00019397,2]
[373477039,1753019464295,-507.08,0.00019397,2]
[373477041,1753019464304,-873.97,0.00019397,2]
[373477043,1753019464314,-480.0,0.00019397,2]
[373477045,1753019464323,-652.56,0.00019397,2]
[373477047,1753019464333,-480.0,0.00019397,2]
[373477049,1753019464342,-1133.69,0.00019397,2]
[373477051,1753019464351,-2024.83,0.00019397,2]
[373477052,1753019464361,-480.0,0.00019397,2]
[373477054,1753019464370,-1078.11,0.00019397,2]
[373477056,1753019464380,-174.84902687,0.00019397,2]
[373477059,1753019464391,-298.92,0.00019397,2]
[373477060,1753019464400,-480.0,0.00019397,2]
[373477062,1753019464409,-480.0,0.00019397,2]
[373477064,1753019464418,-882.42,0.00019397,2]
[373477066,1753019464428,-562.85,0.00019397,2]
[373477068,1753019464439,-808.63,0.00019397,2]
[373477071,1753019464451,-528.35,0.00019397,2]
[373477073,1753019464460,-480.0,0.00019397,2]
[373477075,1753019464470,-480.0,0.00019397,2]
[373477077,1753019464481,-480.0,0.00019397,2]
[373477078,1753019464490,-481.92,0.00019397,2]
[373477080,1753019464499,-480.0,0.00019397,2]
[373477082,1753019464509,-698.42,0.00019397,2]
[373477084,1753019464519,-480.0,0.00019397,2]
[373477086,1753019464529,-1098.19,0.00019397,2]
[373477088,1753019464539,-151.0,0.00019397,2]
[373477090,1753019464549,-480.0,0.00019397,2]
[373477092,1753019464559,-480.0,0.00019397,2]
[373477094,1753019464568,-1470.4,0.00019397,2]
[373477096,1753019464578,-480.0,0.00019397,2]
[373477098,1753019464586,-504.6,0.00019397,2]
[373477100,1753019464596,-480.0,0.00019397,2]
[373477102,1753019464606,-480.0,0.00019397,2]
[373477104,1753019464615,-480.0,0.00019397,2]
[373477106,1753019464625,-480.0,0.00019397,2]
[373477109,1753019464634,-480.0,0.00019397,2]
[373477111,1753019464646,-480.0,0.00019397,2]
[373477112,1753019464655,-480.0,0.00019397,2]
[373477114,1753019464665,-480.0,0.00019397,2]
[373477116,1753019464674,-360.0,0.00019397,2]
[373477118,1753019464683,-530.18,0.00019397,2]
[373477120,1753019464693,-480.0,0.00019397,2]
[373477122,1753019464702,-542.4,0.00019397,2]
[373477124,1753019464712,-480.0,0.00019397,2]
[373477126,1753019464722,-480.0,0.00019397,2]
[373477128,1753019464731,-480.0,0.00019397,2]
[373477130,1753019464741,-480.0,0.00019397,2]
[373477133,1753019464750,-480.0,0.00019397,2]
[373477135,1753019464760,-810.65,0.00019397,2]
[373477136,1753019464769,-509.75,0.00019397,2]
[373477139,1753019464779,-480.0,0.00019397,2]
[373477140,1753019464788,-380.0,0.00019397,2]
[373477142,1753019464798,-480.0,0.00019397,2]
[373477144,1753019464807,-480.0,0.00019397,2]
[373477146,1753019464816,-480.0,0.00019397,2]
[373477148,1753019464825,-1074.62,0.00019397,2]
[373477150,1753019464835,-480.0,0.00019397,2]
[373477152,1753019464844,-480.0,0.00019397,2]
[373477154,1753019464854,-480.0,0.00019397,2]
[373477156,1753019464863,-585.83,0.00019397,2]
[373477158,1753019464873,-488.38,0.00019397,2]
[373477160,1753019464882,-480.0,0.00019397,2]
[373477162,1753019464892,-1248.2,0.00019397,2]
[373477164,1753019464901,-480.0,0.00019397,2]
[373477166,1753019464911,-480.0,0.00019397,2]
[373477167,1753019464920,-1992.38,0.00019397,2]
[373477168,1753019464929,-480.0,0.00019397,2]
[373477169,1753019464938,-480.0,0.00019397,2]
[373477170,1753019464948,-512.42,0.00019397,2]
[373477171,1753019464958,-480.0,0.00019397,2]
[373477172,1753019464967,-483.45,0.00019397,2]
[373477173,1753019464976,-480.0,0.00019397,2]
[373477174,1753019464985,-209.38556779,0.00019397,2]
[373477175,1753019464995,-480.0,0.00019397,2]
[373477176,1753019465004,-480.0,0.00019397,2]
[373477177,1753019465013,-480.0,0.00019397,2]
[373477178,1753019465022,-480.0,0.00019397,2]
[373477179,1753019465032,-480.0,0.00019397,2]
[373477180,1753019465041,-260.76,0.00019397,2]
[373477181,1753019465051,-380.0,0.00019397,2]
[373477182,1753019465060,-480.0,0.00019397,2]
[373477183,1753019465069,-480.0,0.00019397,2]
[373477184,1753019465078,-480.0,0.00019397,2]
[373477185,1753019465087,-480.0,0.00019397,2]
[373477186,1753019465097,-380.0,0.00019397,2]
[373477187,1753019465106,-480.0,0.00019397,2]
[373477188,1753019465116,-480.0,0.00019397,2]
[373477189,1753019465125,-480.0,0.00019397,2]
[373477190,1753019465135,-480.0,0.00019397,2]
[373477191,1753019465146,-989.68,0.00019397,2]
[373477192,1753019465155,-480.0,0.00019397,2]
[373477193,1753019465164,-480.0,0.00019397,2]
[373477194,1753019465173,-1298.15,0.00019397,2]
[373477195,1753019465183,-480.0,0.00019397,2]
[373477196,1753019465192,-1020.25,0.00019397,2]
[373477197,1753019465201,-480.0,0.00019397,2]
[373477198,1753019465210,-507.62,0.00019397,2]
[373477199,1753019465220,-523.15,0.00019397,2]
[373477200,1753019465229,-480.0,0.00019397,2]
[373477201,1753019465239,-294.18083,0.00019397,2]
[373477202,1753019465248,-556.53,0.00019397,2]
[373477203,1753019465257,-480.0,0.00019397,2]
[373477204,1753019465267,-480.0,0.00019397,2]
[373477205,1753019465277,-294.18083,0.00019397,2]
[373477206,1753019465286,-480.0,0.00019397,2]
[373477207,1753019465296,-480.0,0.00019397,2]
[373477208,1753019465306,-480.0,0.00019397,2]
[373477209,1753019465315,-1136.01,0.00019397,2]
[373477210,1753019465325,-480.0,0.00019397,2]
[373477211,1753019465335,-480.0,0.00019397,2]
[373477212,1753019465345,-1095.88,0.00019397,2]
[373477213,1753019465354,-480.0,0.00019397,2]
[373477214,1753019465363,-480.0,0.00019397,2]
[373477215,1753019465372,-480.0,0.00019397,2]
[373477216,1753019465381,-489.5,0.00019397,2]
[373477217,1753019465392,-480.0,0.00019397,2]
[373477218,1753019465401,-1651.63,0.00019397,2]
[373477219,1753019465411,-579.92,0.00019397,2]
[373477220,1753019465420,-480.0,0.00019397,2]
[373477221,1753019465430,-480.0,0.00019397,2]
[373477229,1753019465567,-480.0,0.00019397,2]
[373477231,1753019465577,-151.0,0.00019397,2]
[373477233,1753019465587,-480.0,0.00019397,2]
[373477235,1753019465596,-480.0,0.00019397,2]
[373477237,1753019465606,-229.085472,0.00019397,2]
[373477239,1753019465615,-480.0,0.00019397,2]
[373477241,1753019465624,-480.0,0.00019397,2]
[373477243,1753019465634,-480.0,0.00019397,2]
[373477245,1753019465644,-3923.46,0.00019397,2]
[373477247,1753019465653,-480.0,0.00019397,2]
[373477248,1753019465663,-2237.11,0.00019397,2]
[373477250,1753019465673,-480.0,0.00019397,2]
[373477252,1753019465682,-705.3,0.00019397,2]
[373477254,1753019465692,-453.48,0.00019397,2]
[373477257,1753019465701,-480.0,0.00019397,2]
[373477259,1753019465712,-834.1,0.00019397,2]
[373477260,1753019465721,-480.0,0.00019397,2]
[373477263,1753019465731,-480.0,0.00019397,2]
[373477264,1753019465741,-836.85,0.00019397,2]
[373477266,1753019465750,-256.103402,0.00019397,2]
[373477269,1753019465761,-480.0,0.00019397,2]
[373477271,1753019465771,-480.0,0.00019397,2]
[373477272,1753019465781,-480.0,0.00019397,2]
[373477274,1753019465791,-626.15,0.00019397,2]
[373477276,1753019465801,-480.0,0.00019397,2]
[373477277,1753019465811,-480.0,0.00019397,2]
[373477278,1753019465820,-480.0,0.00019397,2]
[373477279,1753019465830,-480.0,0.00019397,2]
[373477280,1753019465839,-480.0,0.00019397,2]
[373477281,1753019465848,-256.103402,0.00019397,2]
[373477282,1753019465858,-480.0,0.00019397,2]
[373477283,1753019465867,-434.369889,0.00019397,2]
[373477284,1753019465878,-480.0,0.00019397,2]
[373477285,1753019465887,-893.54,0.00019397,2]
[373477286,1753019465896,-971.86,0.00019397,2]
[373477287,1753019465906,-697.5,0.00019397,2]
[373477288,1753019465916,-525.44,0.00019397,2]
[373477289,1753019465926,-480.0,0.00019397,2]
[373477290,1753019465935,-434.369889,0.00019397,2]
[373477291,1753019465945,-480.0,0.00019397,2]
[373477292,1753019465954,-480.0,0.00019397,2]
[373477293,1753019465964,-480.0,0.00019397,2]
[373477294,1753019465974,-480.0,0.00019397,2]
[373477295,1753019465984,-480.0,0.00019397,2]
[373477296,1753019465993,-480.0,0.00019397,2]
[373477297,1753019466003,-480.0,0.00019397,2]
[373477298,1753019466013,-730.73,0.00019397,2]
[373477299,1753019466022,-658.53,0.00019397,2]
[373477300,1753019466032,-480.0,0.00019397,2]
[373477301,1753019466041,-483.9,0.00019397,2]
[373477302,1753019466051,-163.275317,0.00019397,2]
[373477303,1753019466061,-480.0,0.00019397,2]
[373477304,1753019466070,-480.0,0.00019397,2]
[373477305,1753019466080,-480.0,0.00019397,2]
[373477306,1753019466089,-1146.42,0.00019397,2]
[373477307,1753019466099,-163.275317,0.00019397,2]
[373477308,1753019466109,-480.0,0.00019397,2]
[373477309,1753019466118,-503.12226197,0.00019397,2]
[373477310,1753019466127,-480.0,0.00019397,2]
[373477311,1753019466137,-480.0,0.00019397,2]
[373477312,1753019466147,-480.0,0.00019397,2]
[373477313,1753019466156,-480.0,0.00019397,2]
[373477314,1753019466166,-524.05,0.00019397,2]
[373477315,1753019466175,-1227.36,0.00019397,2]
[373477316,1753019466185,-747.03,0.00019397,2]
[373477317,1753019466195,-480.0,0.00019397,2]
[373477318,1753019466204,-480.0,0.00019397,2]
[373477319,1753019466214,-480.0,0.00019397,2]
[373477320,1753019466223,-837.4,0.00019397,2]
[373477321,1753019466233,-480.0,0.00019397,2]
[373477322,1753019466242,-746.83,0.00019397,2]
[373477323,1753019466251,-629.28405211,0.00019397,2]
[373477324,1753019466261,-6250.65,0.00019397,2]
[373477325,1753019466271,-480.0,0.00019397,2]
[373477326,1753019466281,-480.0,0.00019397,2]
[373477327,1753019466291,-480.0,0.00019397,2]
[373477329,1753019466301,-480.0,0.00019397,2]
[373477330,1753019466310,-482.81,0.00019397,2]
[373477331,1753019466320,-420.0,0.00019397,2]
[373477332,1753019466330,-480.0,0.00019397,2]
[373477333,1753019466339,-690.69,0.00019397,2]
[373477334,1753019466349,-480.0,0.00019397,2]
[373477335,1753019466358,-480.0,0.00019397,2]
[373477336,1753019466369,-480.0,0.00019397,2]
[373477337,1753019466379,-480.0,0.00019397,2]
[373477338,1753019466388,-480.0,0.00019397,2]
[373477339,1753019466397,-480.0,0.00019397,2]
[373477340,1753019466407,-480.0,0.00019397,2]
[373477341,1753019466416,-480.0,0.00019397,2]
[373477342,1753019466426,-480.0,0.00019397,2]
[373477343,1753019466437,-1144.78,0.00019397,2]
[373477344,1753019466449,-480.0,0.00019397,2]
[373477345,1753019466459,-569.37,0.00019397,2]
[373477346,1753019466468,-480.0,0.00019397,2]
[373477347,1753019466479,-480.0,0.00019397,2]
[373477348,1753019466488,-480.0,0.00019397,2]
[373477349,1753019466497,-480.0,0.00019397,2]
[373477350,1753019466507,-480.0,0.00019397,2]
[373477351,1753019466517,-480.0,0.00019397,2]
[373477352,1753019466526,-480.0,0.00019397,2]
[373477353,1753019466536,-480.0,0.00019397,2]
[373477354,1753019466546,-480.0,0.00019397,2]
[373477355,1753019466556,-480.0,0.00019397,2]
[373477356,1753019466566,-480.0,0.00019397,2]
[373477357,1753019466576,-480.0,0.00019397,2]
[373477358,1753019466586,-480.0,0.00019397,2]
[373477359,1753019466596,-480.0,0.00019397,2]
[373477360,1753019466605,-738.41,0.00019397,2]
[373477361,1753019466615,-689.85,0.00019397,2]
[373477362,1753019466625,-480.0,0.00019397,2]
[373477363,1753019466634,-480.0,0.00019397,2]
[373477364,1753019466644,-480.0,0.00019397,2]
[373477365,1753019466654,-480.0,0.00019397,2]
[373477366,1753019466663,-480.0,0.00019397,2]
[373477367,1753019466673,-480.0,0.00019397,2]
[373477368,1753019466683,-480.0,0.00019397,2]
[373477369,1753019466693,-1143.0,0.00019397,2]
[373477370,1753019466703,-668.36,0.00019397,2]
[373477371,1753019466713,-480.0,0.00019397,2]
[373477372,1753019466723,-480.0,0.00019397,2]
[373477373,1753019466732,-932.37,0.00019397,2]
[373477374,1753019466742,-2985.1,0.00019397,2]
[373477375,1753019466752,-622.03568752,0.00019397,2]
[373477376,1753019466762,-480.0,0.00019397,2]
[373477377,1753019466772,-480.0,0.00019397,2]
[373477378,1753019466782,-480.0,0.00019397,2]
[373477379,1753019466791,-480.0,0.00019397,2]
[373477380,1753019466801,-480.0,0.00019397,2]
[373477381,1753019466810,-939.17,0.00019397,2]
[373477382,1753019466820,-480.0,0.00019397,2]
[373477383,1753019466829,-1924.75,0.00019397,2]
[373477384,1753019466839,-480.0,0.00019397,2]
[373477385,1753019466849,-480.0,0.00019397,2]
[373477386,1753019466859,-300.0,0.00019397,2]
[373477387,1753019466868,-480.0,0.00019397,2]
[373477388,1753019466878,-527.35,0.00019397,2]
[373477389,1753019466887,-480.0,0.00019397,2]
[373477390,1753019466897,-601.3,0.00019397,2]
[373477391,1753019466907,-480.0,0.00019397,2]
[373477392,1753019466916,-3502.66,0.00019397,2]
[373477393,1753019466926,-1898.09,0.00019397,2]
[373477394,1753019466936,-480.0,0.00019397,2]
[373477395,1753019466945,-480.0,0.00019397,2]
[373477396,1753019466955,-480.0,0.00019397,2]
[373477397,1753019466965,-1159.856952,0.00019397,2]
[373477398,1753019466978,-480.0,0.00019397,2]
[373477399,1753019466987,-480.0,0.00019397,2]
[373477400,1753019466997,-480.0,0.00019397,2]
[373477401,1753019467006,-986.11,0.00019397,2]
[373477402,1753019467015,-1159.856952,0.00019397,2]
[373477403,1753019467025,-480.0,0.00019397,2]
[373477404,1753019467034,-480.0,0.00019397,2]
[373477405,1753019467044,-415.640667,0.00019397,2]
[373477406,1753019467053,-480.0,0.00019397,2]
[373477407,1753019467063,-480.0,0.00019397,2]
[373477408,1753019467072,-1553.54,0.00019397,2]
[373477409,1753019467082,-480.0,0.00019397,2]
[373477410,1753019467091,-480.0,0.00019397,2]
[373477411,1753019467101,-480.0,0.00019397,2]
[373477412,1753019467111,-480.0,0.00019397,2]
[373477413,1753019467121,-480.0,0.00019397,2]
[373477414,1753019467131,-1483.86,0.00019397,2]
[373477415,1753019467142,-1070.15,0.00019397,2]
[373477416,1753019467152,-480.0,0.00019397,2]
[373477417,1753019467161,-415.640667,0.00019397,2]
[373477418,1753019467171,-480.0,0.00019397,2]
[373477419,1753019467181,-480.0,0.00019397,2]
[373477420,1753019467190,-480.0,0.00019397,2]
[373477421,1753019467199,-480.0,0.00019397,2]
[373477422,1753019467209,-532.55,0.00019397,2]
[373477423,1753019467219,-1553.37,0.00019397,2]
[373477424,1753019467228,-480.0,0.00019397,2]
[373477425,1753019467238,-260.964108,0.00019397,2]
[373477426,1753019467248,-480.0,0.00019397,2]
[373477427,1753019467258,-480.0,0.00019397,2]
[373477428,1753019467267,-480.0,0.00019397,2]
[373477429,1753019467276,-480.0,0.00019397,2]
[373477430,1753019467285,-480.0,0.00019397,2]
[373477431,1753019467295,-480.0,0.00019397,2]
[373477432,1753019467304,-260.964108,0.00019397,2]
[373477433,1753019467313,-480.0,0.00019397,2]
[373477434,1753019467323,-480.0,0.00019397,2]
[373477435,1753019467333,-480.0,0.00019397,2]